Cogmind - Beta 14 @@@ ROGUE MODE // 2024.12.17 @ 00:34:31 Player: Copyrite Result: Self-destructed Performance ------------- Evolutions (5) 2500 Regions Visited (8) 1600 Robots Destroyed (66) 330 Value Destroyed (2048) 2048 Prototype IDs (4) 80 Alien Tech Used (0) 0 Bonus (1205) 1205 TOTAL SCORE: 7763 Bonus ------- High Alert Combat Kills 30 Follower Combat Kills 964 Aligned with FarCom 300 Friendly Fire -89 Cogmind --------- Core Integrity 846/1000 Matter 300/300 Energy 98/100 System Corruption 17% Temperature Cool (-100) Movement Core (1400) Ox27 Location -5/Factory Parts ------- > --- POWER (2) -------- (None) > --- PROPULSION (4) --- (None) > --- UTILITY (8) ------ Cryofiber Web Improved Cooling System Huge Storage Unit Improved Targeting Computer Improved Weapon Cycler (fused) > --- WEAPON (3) ------- (None) > --- INVENTORY (25) --- Neutrino Core Peak State ------------ > --- POWER ------------ Neutrino Core Neutrino Core > --- PROPULSION ------- Light Treads Improved Treads Improved Treads Advanced Treads > --- UTILITY ---------- Cryofiber Web Improved Cooling System Army-in-a-Box > --- WEAPON ----------- Long-range Proton Cannon Long-range Proton Cannon Long-range Proton Cannon > --- INVENTORY -------- Neutrino Core Improved Targeting Computer Improved Weapon Cycler Improved Medium Armor Plating Advanced Plasma Cannon [Rating: 101] Favorites ----------- Power Deuterium Engine Engine Deuterium Engine Power Core Light Nuclear Core Propulsion Improved Treads Treads Improved Treads Wheel Wheel Utility Army-in-a-Box Device Army-in-a-Box Storage Large Storage Unit Processor Improved Targeting Computer Protection Weapon Shielding Weapon Improved Assault Rifle Energy Gun Heavy Laser Energy Cannon Long-range Proton Cannon Ballistic Gun Improved Assault Rifle Ballistic Cannon Gauss Cannon Launcher Rocket Launcher Impact Weapon Hammer Slashing Weapon Katana Build | -11 -10 -10 -10 -9 -8 -7 -6 -5 ------- Run | Yrd Mat Min Exi Min Mat Fac Fac Fac Slots Evolved 10 | . . . . . 4 2 2 2 Power 1 | . . . . . . 1 . . Propulsion 2 | . . . . . . 1 . 1 Utility 6 | . . . . . 4 . 1 1 Weapon 1 | . . . . . . . 1 . Parts Attached 63 | 7 9 1 1 3 9 7 4 22 Power 10 | 1 1 1 . . 2 1 1 3 Engine 4 | 1 . 1 . . 1 . . 1 Core 6 | . 1 . . . 1 1 1 2 Reactor . | . . . . . . . . . Propulsion 15 | 2 2 . . 1 4 4 . 2 Treads 12 | 2 2 . . 1 2 4 . 1 Leg . | . . . . . . . . . Wheel 3 | . . . . . 2 . . 1 Hover . | . . . . . . . . . Flight . | . . . . . . . . . Utility 15 | 1 3 . 1 1 1 . 1 7 Device 6 | . . . 1 . 1 . . 4 Storage 4 | 1 2 . . . . . . 1 Processor 1 | . . . . . . . . 1 Hackware . | . . . . . . . . . Protection 4 | . 1 . . 1 . . 1 1 Artifact . | . . . . . . . . . Weapon 23 | 3 3 . . 1 2 2 2 10 Energy Gun 6 | 2 . . . . . . . 4 Energy Cannon 6 | . . . . . . . . 6 Ballistic Gun 5 | 1 2 . . . 1 . 1 . Ballistic Cannon 2 | . . . . . 1 1 . . Launcher 1 | . . . . 1 . . . . Special Weapon . | . . . . . . . . . Impact Weapon 1 | . 1 . . . . . . . Slashing Weapon 2 | . . . . . . 1 1 . Piercing Weapon . | . . . . . . . . . Special Melee Weapon . | . . . . . . . . . Unidentified Prototypes 4 | . 1 . 1 . 1 . . 1 Corrupted Parts 1 | . . . . . . . . 1 System Corruption 6 | . . . . . . . . 6 Parts Lost 14 | . 1 1 . . . . . 12 Power 4 | . 1 1 . . . . . 2 Propulsion 5 | . . . . . . . . 5 Utility 1 | . . . . . . . . 1 Weapon 4 | . . . . . . . . 4 Highest Loss Streak 5 | . 1 1 . . . . . 5 To Critical Strikes . | . . . . . . . . . Average Slot Usage (%) 75 | . 98 99 93 97 54 52 66 65 Engine 5 | . 8 3 14 14 4 7 6 2 Core 5 | . 4 10 . . 4 1 6 8 Treads 20 | . 28 28 28 28 8 15 20 16 Wheel 1 | . . . . . 9 4 . . Device 6 | . . . . . 8 7 6 16 Storage 5 | . 14 14 14 14 . . . . Protection 5 | . 13 14 7 11 . . 6 . Energy Gun 1 | . 2 . . . . . . 4 Energy Cannon 2 | . . . . . . . . 8 Ballistic Gun 12 | . 23 28 28 24 16 . 6 . Ballistic Cannon 1 | . . . . . . 7 6 . Slashing Weapon 2 | . . . . . . 6 6 2 Peak Build Rating 101 | 6 16 16 27 19 69 74 85 101 Average Rating 54 | 4 13 15 15 18 66 70 81 87 On Entrance 33 | . 6 16 14 18 19 66 74 85 Naked Turns . | . . . . . . . . . Heaviest Build 146 | 11 32 32 32 33 97 103 114 146 Greatest Support 88 | 40 46 46 46 46 46 65 65 88 Greatest Overweight (x) 43 | . . . . . 9 5 1 43 Average Overweight (x) 1 | . . . . . 4 2 1 1 Largest Inventory Capacity 25 | 8 15 15 15 15 15 5 5 25 Average Capacity 9 | 7 11 15 15 15 5 5 5 8 Most Carried 15 | 7 9 8 15 15 15 5 5 5 Average Carried 6 | 3 7 7 10 14 5 4 4 4 Final Capacity 25 | 8 15 15 15 15 5 5 5 25 Final Carried 15 | 6 8 7 14 15 5 5 5 1 Class Distribution -------------------- 87% | Mutant 8% | Skirmisher Dominant Class ---------------- Mutant | -10/Materials Mutant | -10/Mines Mutant | -10/Exiles Mutant | -9/Mines Mutant | -8/Materials Mutant | -7/Factory Mutant | -6/Factory Mutant | -5/Factory Resources | -11 -10 -10 -10 -9 -8 -7 -6 -5 ----------- Run | Yrd Mat Min Exi Min Mat Fac Fac Fac Matter Collected 1624 | 243 210 194 . 107 120 277 80 393 Remotely . | . . . . . . . . . Salvage Created 2764 | . 333 363 . 273 89 139 86 1481 Parts 145 | . 24 27 . 11 5 8 7 63 Haulers Intercepted 1 | . . . . . . 1 . . Recyclers Shooed 4 | . . . . 1 1 . . 2 Parts Field Recycled . | . . . . . . . . . Retrieved Matter . | . . . . . . . . . Parts Self-Destructed . | . . . . . . . . . Prevented . | . . . . . . . . . Kills | -11 -10 -10 -10 -9 -8 -7 -6 -5 ------- Run | Yrd Mat Min Exi Min Mat Fac Fac Fac Combat Hostiles Destroyed 52 | . 10 15 . 5 . 2 1 19 Guns 26 | . 10 15 . 1 . . . . Cannons 15 | . . . . . . 2 1 12 AOE 5 | . . . . 4 . . . 1 Classes Destroyed 11 | . 3 . . 1 1 3 2 1 Worker 2 | . . . . . 1 . . 1 Builder 2 | . . . . . . 1 . 1 Hauler 1 | . . . . . . 1 . . Recycler 5 | . 1 . . 1 1 . . 2 Watcher 4 | . . . . . . . 1 3 Swarmer 21 | . 6 11 . . . . . 4 Grunt 21 | . 4 4 . 4 . 1 . 8 Duelist 2 | . . . . 1 . . . 1 Sentry 3 | . . . . . . . 1 2 Hunter 2 | . . . . . . . . 2 Programmer 3 | . . . . . . 1 . 2 Best Kill Streak 9 | . 5 6 . 3 1 1 1 9 Combat Bots Only 8 | . 4 6 . 3 . 1 1 8 Max Kills in Single Turn 2 | . 1 2 . 2 1 1 1 1 Gunslinging 1 | . . 1 . . . . . . Exploded 2 | . . . . 2 . . . 1 Melee . | . . . . . . . . . Uniques/NPCs Destroyed . | . . . . . . . . . Combat | -11 -10 -10 -10 -9 -8 -7 -6 -5 -------- Run | Yrd Mat Min Exi Min Mat Fac Fac Fac Hostile Shots Fired 299 | . 35 47 . 1 . 38 30 148 Missed 95 | . 13 9 . . . 12 18 43 Damage Taken 3028 | . 225 380 . 15 . 267 100 2041 Core 294 | . 30 87 . . . 23 . 154 Absorbed by Shields 16 | . . . . . . 16 . . Redirected to Shielding 40 | . 9 31 . . . . . . Core Remaining (%) 89 | 100 . . . 53 100 96 100 . Volleys Fired 165 | . 22 27 . 8 14 27 6 61 Largest 3 | . 2 2 . 2 2 1 2 3 Hottest 243 | . 46 46 . 46 46 48 73 243 Shots Fired 274 | . 44 54 . 9 21 27 12 107 Gun 140 | . 44 54 . 4 14 . 6 18 Cannon 129 | . . . . . 7 27 6 89 Launcher 5 | . . . . 5 . . . . Special . | . . . . . . . . . Kinetic 162 | . 44 54 . 4 21 27 12 . Thermal 37 | . . . . . . . . 37 Explosive 5 | . . . . 5 . . . . Electromagnetic 70 | . . . . . . . . 70 Robot Hit Streak 15 | . 8 15 . 9 11 3 4 11 Robot Miss Streak 5 | . 4 2 . 1 1 3 2 5 Penetration Max 1 | . . . . . . 1 . . Secondary Targets 2 | . . 2 . . . . . . Max Gunslinging Chain 1 | . . 1 . . . . . . Shots Hit Robots 183 | . 29 39 . 5 11 16 8 75 Core Hits 96 | . 13 19 . 9 4 5 3 43 Critical Kills 3 | . 1 . . . . . . 2 Critical Parts Destroyed 1 | . . 1 . . . . . . Critical Strikes 12 | . 1 1 . . . 3 3 4 Burn 1 | . . . . . . . . 1 Meltdown 2 | . . . . . . . . 2 Destroy 2 | . 1 1 . . . . . . Blast 6 | . . . . . . 3 3 . Corrupt 1 | . . . . . . . . 1 Melee Attacks 1 | . . . . . . 1 . . Impact . | . . . . . . . . . Slashing 1 | . . . . . . 1 . . Piercing . | . . . . . . . . . Sneak Attacks 1 | . . . . . . 1 . . Combat Hostiles . | . . . . . . . . . Follow-up Attacks . | . . . . . . . . . Damage Inflicted 4887 | . 462 574 . 323 196 515 225 2592 Guns 1633 | . 454 574 . 45 189 . 84 287 Cannons 2652 | . . . . . . 445 141 2066 Explosions 458 | . . . . 278 . . . 180 Melee 70 | . . . . . . 70 . . Ramming 74 | . 8 . . . 7 . . 59 Kinetic 1932 | . 454 574 . 45 189 445 225 . Thermal 997 | . . . . . . . . 997 Explosive 278 | . . . . 278 . . . . Electromagnetic 1536 | . . . . . . . . 1536 Impact . | . . . . . . . . . Slashing 70 | . . . . . . 70 . . Piercing . | . . . . . . . . . Highest Corruption 17 | . . . . . . 2 . 17 Average Corruption 6 | . . . . . . 2 . 6 Corruption Purged . | . . . . . . . . . Corruption Blocked . | . . . . . . . . . Effects 31 | . . . . . . 1 . 30 Message Errors 7 | . . . . . . 1 . 6 Matter Fused 9 | . . . . . . . . 9 Heat Flow Errors 3 | . . . . . . . . 3 Energy Discharges 5 | . . . . . . . . 5 Parts Fused 1 | . . . . . . . . 1 Data Loss (minor) 4 | . . . . . . . . 4 Misfires 2 | . . . . . . . . 2 Overload Shots . | . . . . . . . . . Overflow Damage 49 | . . . . . . . . 49 Projectiles 49 | . . . . . . . . 49 Explosions . | . . . . . . . . . Melee . | . . . . . . . . . Knockbacks 7 | . . . . . . 5 1 1 Impact 1 | . . . . . . . . 1 Kinetic 6 | . . . . . . 5 1 . Secondary . | . . . . . . . . . Self-Inflicted Damage 65 | . . . . . . . . 65 Shots 1 | . . . . . . . . 1 Rammed 7 | . 2 . . . 1 . . 4 Targets Rammed 7 | . 2 . . . 1 . . 4 Kicked . | . . . . . . . . . Crushed . | . . . . . . . . . Highest Temperature 331 | . 4 12 . 12 . 14 92 331 Average Temperature 63 | . 2 5 . 6 . 5 38 95 Received Heat Transfer 636 | . 57 99 . 9 . 114 33 324 Siege Activations . | . . . . . . . . . Robots Corrupted 5 | . . . . . . . . 5 Combat Hostiles 5 | . . . . . . . . 5 Parts Fried 12 | . . . . . . . . 12 Impact Corruptions . | . . . . . . . . . Robots Melted 2 | . . . . . . . . 2 Combat Hostiles 1 | . . . . . . . . 1 Parts Melted 13 | . . . . . . . . 13 Heat Transferred 1468 | . . . . . . . . 1468 Parts Sabotaged . | . . . . . . . . . Parts Stolen . | . . . . . . . . . Parts Stripped . | . . . . . . . . . Power Chain Reactions 1 | . . . . . . . . 1 Alert | -11 -10 -10 -10 -9 -8 -7 -6 -5 ------- Run | Yrd Mat Min Exi Min Mat Fac Fac Fac Peak Influence 492 | . 268 277 . 251 166 181 305 492 Initial 97 | . . 57 . . 97 14 53 35 Average 116 | . 84 160 . 91 86 88 170 116 Maximum Alert Level 2 | . 1 1 . 1 . . 1 2 Low Security (%) 79 | 100 87 59 . 85 100 100 52 77 Level 1 19 | . 12 40 . 14 . . 47 18 Level 2 1 | . . . . . . . . 4 Level 3 . | . . . . . . . . . Level 4 . | . . . . . . . . . Level 5 . | . . . . . . . . . High Security . | . . . . . . . . . Max Security . | . . . . . . . . . Squads Dispatched 12 | . 1 . . . 1 4 1 5 Investigation 2 | . . . . . . 1 1 . Extermination 3 | . . . . . . 1 . 2 Reinforcement 7 | . 1 . . . 1 2 . 3 Assault . | . . . . . . . . . Garrison . | . . . . . . . . . Intercept . | . . . . . . . . . Searches Triggered . | . . . . . . . . . Construction Impeded 1 | . . . . . . 1 . . Haulers Reinforced 3 | . . . . . . 1 . 2 Active Scanning Responses . | . . . . . . . . . Cargo Convoy Interrupts . | . . . . . . . . . Stealth | -11 -10 -10 -10 -9 -8 -7 -6 -5 --------- Run | Yrd Mat Min Exi Min Mat Fac Fac Fac Distress Signals 10 | . 3 . . . 2 1 1 3 Communications Jammed . | . . . . . . . . . Distress Signals . | . . . . . . . . . Times Spotted 105 | . 20 15 . 6 3 18 8 35 Peak Tracking Total 6 | . 6 3 . 3 3 4 3 5 Tactical Retreats 5 | . . 1 . . . 1 . 3 Traps | -11 -10 -10 -10 -9 -8 -7 -6 -5 ------- Run | Yrd Mat Min Exi Min Mat Fac Fac Fac Traps Triggered 4 | . 1 . . . . 3 . . Indirectly . | . . . . . . . . . Trap Hack Attempts . | . . . . . . . . . Triggered . | . . . . . . . . . Disarmed . | . . . . . . . . . Reprogrammed . | . . . . . . . . . Reused . | . . . . . . . . . Traps Extracted . | . . . . . . . . . Installed . | . . . . . . . . . Triggered . | . . . . . . . . . Machines | -11 -10 -10 -10 -9 -8 -7 -6 -5 ---------- Run | Yrd Mat Min Exi Min Mat Fac Fac Fac Machines Disabled 7 | . . 1 . 1 . 2 . 3 Max in Single Turn 1 | . . 1 . 1 . 1 . 1 Garrison Access 1 | . . . . . . . 1 . Machines Repaired . | . . . . . . . . . Machines Dismantled . | . . . . . . . . . Machines Sabotaged . | . . . . . . . . . Overloaded Fab Kills . | . . . . . . . . . Hacking | -11 -10 -10 -10 -9 -8 -7 -6 -5 --------- Run | Yrd Mat Min Exi Min Mat Fac Fac Fac Machines Accessed 4 | . 1 . . . 1 . 2 . Terminals 1 | . 1 . . . . . . . Fabricators . | . . . . . . . . . Repair Stations 1 | . . . . . 1 . . . Recycling Units . | . . . . . . . . . Scanalyzers . | . . . . . . . . . Garrison Access 2 | . . . . . . . 2 . Total Hacks 6 | . 3 . . . 1 . 2 . Successful 3 | . 2 . . . . . 1 . Failed 3 | . 1 . . . 1 . 1 . Catastrophic 2 | . 1 . . . . . 1 . Database Lockouts . | . . . . . . . . . Manual 7 | . 3 . 1 . . . 3 . Terminals 3 | . 3 . . . . . . . Fabricators . | . . . . . . . . . Repair Stations 1 | . . . . . 1 . . . Recycling Units . | . . . . . . . . . Scanalyzers . | . . . . . . . . . Garrison Access 2 | . . . . . . . 2 . Terminal Hacks 1 | . 1 . . . . . . . Branch Access Points 1 | . 1 . . . . . . . Fabricator Hacks . | . . . . . . . . . Repair Station Hacks . | . . . . . . . . . Recycling Unit Hacks . | . . . . . . . . . Scanalyzer . | . . . . . . . . . Garrison Access Hacks . | . . . . . . . . . Unauthorized Hacks 2 | . 1 . . . . . 1 . Terminals 1 | . 1 . . . . . . . Botnet 1 | . 1 . . . . . . . Fabricators . | . . . . . . . . . Repair Stations . | . . . . . . . . . Recycling Units . | . . . . . . . . . Scanalyzers . | . . . . . . . . . Garrison Access 1 | . . . . . . . 1 . Jam 1 | . . . . . . . 1 . Data Cores Recovered . | . . . . . . . . . Used . | . . . . . . . . . Hacking Detections 2 | . 1 . . . . . 1 . Full Trace Events . | . . . . . . . . . Feedback Events . | . . . . . . . . . Feedback Blocked . | . . . . . . . . . Robot Schematics Acquired . | . . . . . . . . . Robots Built . | . . . . . . . . . Authchips . | . . . . . . . . . Time . | . . . . . . . . . Total Robot Build Rating . | . . . . . . . . . Part Schematics Acquired . | . . . . . . . . . Parts Built . | . . . . . . . . . Authchips . | . . . . . . . . . Time . | . . . . . . . . . Total Part Build Rating . | . . . . . . . . . Parts Repaired . | . . . . . . . . . Time . | . . . . . . . . . Parts Recycled . | . . . . . . . . . Recycled Matter . | . . . . . . . . . Retrieved Matter . | . . . . . . . . . Retrieved Components . | . . . . . . . . . Parts Scanalyzed . | . . . . . . . . . Part Schematics Acquired . | . . . . . . . . . Parts Damaged . | . . . . . . . . . Bothacking | -11 -10 -10 -10 -9 -8 -7 -6 -5 ------------ Run | Yrd Mat Min Exi Min Mat Fac Fac Fac Used RIF Installer . | . . . . . . . . . Robots Hacked . | . . . . . . . . . Non-combat . | . . . . . . . . . Combat . | . . . . . . . . . Robot Hacks Applied . | . . . . . . . . . Relay Couplers Released . | . . . . . . . . . Fabnet Peak Effective % . | . . . . . . . . . Robots Rewired . | . . . . . . . . . Allies Hacked . | . . . . . . . . . Hacks Repelled . | . . . . . . . . . Allies | -11 -10 -10 -10 -9 -8 -7 -6 -5 -------- Run | Yrd Mat Min Exi Min Mat Fac Fac Fac Total Allies 3 | . . 3 . . . . . . Largest Group 3 | . . 3 3 3 3 . . . Highest-Rated Group 40 | . . 40 40 40 40 . . . Highest-Rated Ally 16 | . . 16 16 16 16 . . . Total Orders 11 | . . . . . 2 5 1 3 FOLLOW 1 | . . . . . . 1 . . RETURN 10 | . . . . . 2 4 1 3 Ally Attacks 245 | . . 2 . 15 40 77 27 84 Total Damage 3430 | . . 13 . 127 677 993 337 1283 Kills 32 | . . 1 . 2 5 11 4 9 Allies Corrupted . | . . . . . . . . . Allies Melted . | . . . . . . . . . Intel | -11 -10 -10 -10 -9 -8 -7 -6 -5 ------- Run | Yrd Mat Min Exi Min Mat Fac Fac Fac Robot Analysis Total . | . . . . . . . . . Derelict Logs Recovered 3 | . . 1 . 2 . . . . Drone Launches 64 | . . . . . 10 12 6 36 Drone Recoveries 50 | . . . . . 9 9 6 26 Exploration | -11 -10 -10 -10 -9 -8 -7 -6 -5 ------------- Run | Yrd Mat Min Exi Min Mat Fac Fac Fac Turns Passed 7421 | 96 1062 1100 348 258 639 1073 959 1886 Spaces Moved 3389 | 51 593 599 216 144 291 486 392 617 Core 5 | 3 . . . . . . . 2 Treads 2925 | 48 593 599 216 144 64 263 392 606 Legs . | . . . . . . . . . Wheels 459 | . . . . . 227 223 . 9 Hover . | . . . . . . . . . Flight . | . . . . . . . . . Fastest Speed 50 | 50 160 160 160 160 140 140 235 156 Average Speed 193 | 153 160 160 160 160 185 191 235 261 Slowest Speed 2200 | 160 160 160 160 160 312 235 235 2200 Overloaded Moves . | . . . . . . . . . Propulsion Burnouts . | . . . . . . . . . Robots Hopped . | . . . . . . . . . Cave-ins Triggered . | . . . . . . . . . Exploration Rate (%) 42 | 5 87 90 63 50 30 17 14 23 Regions Visited 8 Branch Regions 3 Pre-discovered Areas 1 | . . . . 1 . . . . Known Exits Taken 2 | . 1 . . . 1 . . . Unknown Exits Taken 6 | 1 . 1 1 1 . 1 1 . Scrap Searched 2 | . . 1 . 1 . . . . Spaces Dug 5 | . . . . . 5 . . . Terrain Destroyed 67 | . . . . 51 5 3 . 8 Melee . | . . . . . . . . . Projectile 13 | . . . . . 5 3 . 5 AOE 54 | . . . . 51 . . . 3 Terrain Rammed . | . . . . . . . . . Walls Destroyed . | . . . . . . . . . Machines Disabled . | . . . . . . . . . Actions | -11 -10 -10 -10 -9 -8 -7 -6 -5 --------- Run | Yrd Mat Min Exi Min Mat Fac Fac Fac Total 4002 | 66 663 687 220 163 371 602 422 808 Wait 276 | 1 20 61 . 2 39 68 10 75 Move 3381 | 50 592 598 215 143 290 485 391 617 Hop . | . . . . . . . . . Pick Up 50 | 8 6 . 2 4 5 7 6 12 Fast Attach 17 | 4 5 . . . 1 1 . 6 Attach 18 | 2 . 1 1 1 . 3 2 8 Detach 2 | . 1 . 1 . . . . . Swap 28 | 1 4 . . 2 8 3 2 8 Drop 56 | . 11 . 1 3 13 6 5 17 Fire 165 | . 22 27 . 8 14 27 6 61 Melee 1 | . . . . . . 1 . . Ram . | . . . . . . . . . Kick . | . . . . . . . . . Crush 7 | . 2 . . . 1 . . 4 Escape Stasis 1 | . . . . . . 1 . . Rewire . | . . . . . . . . . Trap . | . . . . . . . . . Miscellaneous . | . . . . . . . . . Route ------- -11/Scrapyard -10/Materials (discovered 4 exits: [*Mat x3] / *Min) -10/Mines (discovered 3 exits: [*Mat x2] / *Exi) -10/Exiles (discovered 2 exits: [*Min x2]) -9/Mines -8/Materials -7/Factory (discovered 2 exits: *Fac / Sto) -6/Factory -5/Factory History --------- Turn | Location | Event 8 | -11/Scrapyard | Discovered new exit (range 15) 97 | -11/Scrapyard | Entered Materials 318 | -10/Materials | Build established: Mutant 364 | -10/Materials | Discovered new exit (range 13) 369 | -10/Materials | Identified exit to Mines 578 | -10/Materials | Discovered new exit (range 8) 835 | -10/Materials | Discovered new exit (range 4) 1159 | -10/Materials | Entered Mines 1350 | -10/Mines | Learned 2 Materials zone layouts 1772 | -10/Mines | Discovered new exit (range 7) 1983 | -10/Mines | Assisted by bots powering up and referring to "LRC-V3" 2032 | -10/Mines | Discovered new exit (range 14) 2243 | -10/Mines | Deemed a non-threat by the Exiles lab entrance 2245 | -10/Mines | Discovered new exit (range 5) 2259 | -10/Mines | Entered Exiles 2259 | -10/Exiles | Accompanied by 3 allies 2283 | -10/Exiles | Discovered new exit (range 15) 2303 | -10/Exiles | Met 8R-AWN 2333 | -10/Exiles | Met EX-HEX 2379 | -10/Exiles | Met EX-BIN 2402 | -10/Exiles | Aligned with FarCom system 2403 | -10/Exiles | Given EX-Vault access code 2442 | -10/Exiles | Opened EX-Vault 2447 | -10/Exiles | Found Prototype Device 2453 | -10/Exiles | Found Prototype Device 2454 | -10/Exiles | Identified Trap Reconfigurator 2489 | -10/Exiles | Warned to stay clear of 0b10 Research branches 2511 | -10/Exiles | Exiles lab attacked by MAIN.C 2591 | -10/Exiles | Discovered new exit (range 12) 2607 | -10/Exiles | Left Exiles lab with Army-in-a-Box 2607 | -10/Exiles | Entered Mines 2607 | -9/Mines | Accompanied by 3 allies 2702 | -9/Mines | Received a Rocket Launcher from a helpful Derelict 2803 | -9/Mines | Discovered new exit (range 11) 2862 | -9/Mines | Excavation squad dispatched 2862 | -9/Mines | A large section of the Mines collapsed 2865 | -9/Mines | Entered Materials 2865 | -8/Materials | Accompanied by 3 allies 2865 | -8/Materials | Evolved 4 slots: Utility x4 2866 | -8/Materials | Identified exit to Factory 2873 | -8/Materials | Identified Army-in-a-Box 3504 | -8/Materials | Entered Factory 3504 | -7/Factory | Evolved 2 slots: Power x1, Propulsion x1 3505 | -7/Factory | Identified exit to Storage 4547 | -7/Factory | Discovered new exit (range 13) 4577 | -7/Factory | Entered another Factory area 4577 | -6/Factory | Evolved 2 slots: Utility x1, Weapon x1 5465 | -6/Factory | Discovered new exit (range 15) 5536 | -6/Factory | Entered another Factory area 5536 | -5/Factory | Evolved 2 slots: Propulsion x1, Utility x1 6369 | -5/Factory | Lost 5 allies 6499 | -5/Factory | Lost 3 allies 6785 | -5/Factory | Build established: Skirmisher 7231 | -5/Factory | System corruption reached 10% 7285 | -5/Factory | Lost 3 parts (2n1w) 7371 | -5/Factory | Destroyed 8 combat bots 7375 | -5/Factory | Lost 4 parts (2n1u1w) 7422 | -5/Factory | Self-destructed Last Messages --------------- A-15 Conveyor calls for reinforcements. ALERT: Hostile activity reported, dispatching reinforcements to area. System corrupted: Energy discharge (-128). K-01 Serf collects debris. Acquired 22 matter. K-01 Serf collects debris. P-70 Sage resets K-01 Serf, system corruption cleaned. M-28 Smith repairs A-15 Conveyor. K-01 Serf collects debris. Neutrino Core destroyed. K-01 Serf collects debris. Lrn. Proton Cannon destroyed. K-01 Serf collects debris. Adv. Plasma Cannon destroyed. M-28 Smith repairs Lgt. Ion Engine. Neutrino Core destroyed. K-01 Serf collects debris. Wheel destroyed. Map ----- +----------------------------------------------------+ | ?????????????????????????????????????????????????? | | ?????????????????????????????????????????????????? | | ?????????????????????????????????????????????????? | | ?????????????????????????????????????????????????? | | ?????????????????????????????????????????????????? | | ?????????????????????????????????????????????????? | | ?????????????????????????????????????????????????? | | ?????????????????????????????????????????????????? | | ?????????????????????????????????????????????????? | | ?????????????????????????????????????????????????? | | ?????????????????????????????????????????????????? | | ?????????????????????????????????????????????????? | | ?????????????????????????????????????????????????# | | ?????????????????????????????????????????????????# | | ?????????????????????????????????????????????????# | | ?????????????????????????????????????????????????# | | ????????????????????????????????????#???? ???# | | ??????????????????????# ????????????# """"""""" # | | ??????????????????????# """?????????# # | | ??????????????????????# ???? ??# """"""""" # | | ??????????????????????# """""" ?# # | | ??????????????????????# """""" ??# """"""""" # | | ??????????????????????# """""" ????# # | | ??????????????????????# """"""??????# """"""""" # | | ??????????????????????? ????????# **%%! # | | ??????????????????#######@#################+###### | | ??????????? ! [ | | ??????????? * % |% %= | | ??????????? * * | | ???????????? %k % | | ???????????? =km | | ????????????? %*[= | | ???????????gA [ = % | | ???????????g?########### #####+########/###### | | ???????????????????????# % #?? ??? ???? | | ???????????????????????# #?? " ?? ? ??? | | ???????????????????????# #? " "??!?? ??? | | ???????????????????????# #? " "?????? ??? | | ???????????????????????# p # ?? "?????? ??? | | ???????????????????????# # ?? ??????? ?? | | ???????????????????????# p #?? ?? ????????"T"?? | | ???????????????????????? ??????? ????????"???? | | ??????????????????????????????????????????????#### | | ??????????????????????????????????????????????# | | ??????????????????????????????????????????????# "" | | ??????????????????????????????????????????????# "" | | ??????????????????????????????????????????????# "" | | ??????????????????????????????????????????????# | | ??????????????????????????????????????????????# | | ??????????????????????????????????????????????# | +----------------------------------------------------+ Best States ------------- Heat Dissipation 67 Energy Generation 34 Energy Capacity 530 Matter Stores 300 Matter Capacity 300 Sight Range 16 Terrain Scan Density 10 Base Temperature (-) 100 Armor Coverage 225 Weapon Shielding 33 Weapon Cycling 20 Evasion (%) 40 Targeting Accuracy 6 Recoil Reduction 4 Item Schematics ----------------- None Robot Schematics ------------------ None Fabricated ------------ Nothing Alien Tech Used ----------------- None Achievements -------------- None Challenges ------------ None Game ------ Seed HeartAssaultNanovents Manual? 0 Play Time 00:57:39 Cumulative 42.0 hours Start 2024.12.16 @ 23:40:51 End 2024.12.17 @ 00:34:31 Sessions 1 Manual Loads 0 Difficulty Rogue Special Mode None Game No. 72 Rogue 72 Adventurer 0 Explorer 0 Win Type - Total 1 Types 1/0/0/0/0/0/0/0/0 Lore% 23 Gallery% 35 Achievement% 37 Wizard Run 0 Options --------- Layout 1 ASCII 0 Keyboard 0 Movement Numpad Keybinds 0 Fullscreen 1 Font 32/SmallcapsGlow Map View 50x35 Zoom Use 0% Tactical HUD 0 Map Filters NONE Filters NONE Steam 1 RUN: e3d3c9a4-6117-4abc-8093-277851794345